[Event "Presidents Day GM-Norm 2024"]
[Site "Santa Clara"]
[Date "2024.02.16"]
[Round "2.3"]
[White "Atwell, Rose"]
[Black "Harsha Bharathakoti"]
[Result "0-1"]
[ECO "B30"]
[WhiteElo "2104"]
[BlackElo "2565"]
[Annotator "TA"]
[PlyCount "104"]
[EventDate "2024.02.13"]
[EventType "tourn"]
[EventCountry "USA"]
[SourceTitle "playchess.com"]
[Source "ChessBase"]
[SourceQuality "1"]
[TimeControl "5400+30"]

{[%evp 9,104,26,29,0,8,20,29,18,22,17,20,22,22,13,20,20,19,0,6,0,0,0,0,-3,-5,0,-3,-8,-7,-13,21,-16,-7,-34,-15,-1,-3,-16,-15,-20,-6,-56,0,-100,-79,-106,-113,-100,-12,-6,-4,-23,-25,-39,-58,-58,0,-156,-155,-160,-114,-529,-220,-211,-208,-172,-188,-192,-152,-137,-135,-136,-137,-137,-137,-400,-408,-436,-385,-1264,-1168,-1433,-977,-29988,-29989,-29989,-29990,-29991,-29990,-29992,-29991,-29992,-29993,-29994,-29995,-29995,-29996]} 1. e4 {[%emt 0:00:02]} c5 {[%emt 0:02:01]} 2. Nf3 {[%emt 0:00:02]} Nc6 {[%emt 0:01:12][%cal Bb8c6,Bc6d4,Bd4f3][%mdl 32]} 3. Bb5 {[%emt 0:00:06]} e6 {[%emt 0:00:41]} 4. O-O {[%emt 0:00:31]} Nge7 {[%emt 0:00:18]} 5. Re1 {[%emt 0:00:55]} Nd4 {[%emt 0:08:10]} 6. Bf1 {[%emt 0:05:43]} Nxf3+ {[%emt 0:07:12]} 7. Qxf3 {[%emt 0:00:07]} Ng6 {[%emt 0:14:11]} 8. c3 {[%emt 0:06:32] White has an edge.} Be7 {[%emt 0:01:53]} 9. d4 {[%emt 0:05:31]} O-O {[%emt 0:05:13]} 10. dxc5 {[%emt 0:07:45]} Bxc5 {[%emt 0:00:07]} 11. Be3 {[%emt 0:01:00]} Be7 {[%emt 0:05:15]} 12. g3 {[%emt 0:07:19]} b6 {[%emt 0:02:43]} 13. Nd2 {[%emt 0:02:32]} Bb7 {[%emt 0:00:22]} 14. Qd1 {[%emt 0:02:40]} d5 {[%emt 0:14:58]} 15. Bg2 {[%emt 0:02:35]} dxe4 {[%emt 0:01:01]} 16. Nxe4 {[%emt 0:02:26][%cal Oe4f6]} Qc7 {[%emt 0:00:22]} 17. f4 {[%emt 0:06:36]} Rad8 {[%emt 0:04:58]} 18. Qe2 {[%emt 0:03:34]} Bd5 {[%emt 0:04:47]} 19. h4 {[%emt 0:05:41]} f5 {[%emt 0:08:54]} 20. Ng5 {[%emt 0:06:08]} Bxg5 {[%emt 0:00:36]} 21. hxg5 {[%emt 0:00:33]} e5 {[%emt 0:02:59] Wards off Bd4} 22. Bxd5+ {[%emt 0:09:10]} Rxd5 {[%emt 0:00:04]} 23. Qf3 {[%emt 0:00:44]} e4 {[%emt 0:02:01]} 24. Qe2 {[%emt 0:02:15]} Rfd8 {[%emt 0:02:00]} 25. Kg2 {[%emt 0:03:04]} (25. Red1 $11) 25... Nf8 {[%emt 0:01:38]} ({Better is} 25... Qd7 $15) 26. Rh1 {[%emt 0:00:58]} (26. Rad1 $11 {remains equal.}) 26... Rd3 {[%emt 0:01:34]} 27. Rad1 {[%emt 0:01:32]} Qc4 {[%emt 0:01:06]} 28. a3 {[%emt 0:01:26]} b5 {[%emt 0:03:34]} (28... Qb3 $17 {[%cal Rd3d1]} 29. Rxd3 exd3) 29. Rxd3 $11 {[%emt 0:01:26]} exd3 {[%emt 0:00:03]} 30. Qf2 {[%emt 0:02:52][%cal Oh1d1] White is weak on the light squares} Qb3 {[%emt 0:02:10][%cal Od3d2]} 31. Qd2 {[%emt 0:01:32][%cal Oh1d1]} Qd5+ {[%emt 0:01:05]} 32. Kh2 {[%emt 0:00:24][%cal Oe3d4]} h6 {[%emt 0:01:14]} 33. Re1 $2 {[%emt 0:02:09]} ({White should play} 33. gxh6 $11 Rd6 (33... gxh6 34. Bd4 $16) 34. Kg1 gxh6 (34... Rxh6 35. Rxh6 gxh6 36. Bxa7 $11) 35. Bd4) 33... hxg5 $17 {[%emt 0:00:04]} 34. fxg5 {[%emt 0:00:06][%cal Od2g2]} Ne6 {[%emt 0:01:06]} 35. Bxa7 $2 {[%emt 0:01:20][%mdl 8192]} (35. g6 $17 {is a better chance.}) 35... Kf7 {[%emt 0:01:19]} (35... Nxg5 $142 {( -> ...Nf3+)} 36. Qxg5 Rd6 37. Re8+ Kh7) 36. Kg1 $19 {[%emt 0:02:29]} Kg6 $1 {[%emt 0:00:04]} 37. Be3 {[%emt 0:01:37]} Qf3 {[%emt 0:00:31]} 38. Qh2 {[%emt 0:04:53]} Qg4 $40 {[%emt 0:01:32][%cal Of5f4][%mdl 128] ...f4! would now be deadly. Black attacks with force.} (38... Nxg5 $2 {loses.} 39. Bxg5 $18) 39. Qh4 {[%emt 0:01:14] [#]} Qxh4 {[%emt 0:00:27]} (39... Nxg5 $2 {perishes.} 40. Bxg5 Qxg5 41. Re6+ $18) 40. gxh4 $17 {[%emt 0:00:02][%mdl 4096] Endgame. [#] KRB-KRN} f4 $1 {[%emt 0:00:16] Black is more active.} 41. Bd2 {[%emt 0:00:56]} Kf5 {[%emt 0:00:08] And now ...Rh8 would win.} 42. c4 $2 {[%emt 0:01:18][%mdl 8192] Now White is beyond hope.} (42. Kg2 $17) 42... bxc4 {[%emt 0:00:35]} 43. Bc3 {[%emt 0:00:13]} Rd5 {[%emt 0:01:02]} ({Not} 43... d2 44. Rd1 Nd4 45. Kg2 $19) 44. Kf2 $2 {[%emt 0:00:58]} (44. Kf1) 44... Nc5 $19 {[%emt 0:00:28]} 45. Bxg7 {[%emt 0:00:48]} Ne4+ {[%emt 0:00:22]} 46. Kf3 {[%emt 0:00:22]} d2 {[%emt 0:00:08] Black mates.} 47. Rd1 {[%emt 0:00:02]} Rd3+ {[%emt 0:00:07]} 48. Ke2 {[%emt 0:00:31]} f3+ {[%emt 0:01:24]} 49. Kf1 {[%emt 0:00:07]} f2 {[%emt 0:00:04]} 50. Ke2 {[%emt 0:00:42]} Kf4 {[%emt 0:00:26]} 51. Bd4 {[%emt 0:01:25]} Rxd4 {[%emt 0:00:03]} 52. g6 {[%emt 0:00:05]} Rd3 {[%emt 0:00:06] Weighted Error Value: White=0.55/Black=0.20 (precise) .  Loses game:     	White=2     	---        Mistake:       	White=4     	Black=3      Inaccurate:     	White=3     	Black=1      OK:         	White=12    	Black=19     Best:        	White=4     	Black=2      Strong:       	---       	Black=1} 0-1

[Event "Presidents Day GM-Norm 2024"]
[Site "Santa Clara"]
[Date "2024.02.16"]
[Round "2.4"]
[White "Wang, Isaac"]
[Black "Budisavljevic, Luka"]
[Result "1/2-1/2"]
[ECO "E15"]
[WhiteElo "2316"]
[BlackElo "2475"]
[Annotator "TA"]
[PlyCount "66"]
[EventDate "2024.02.13"]
[EventType "tourn"]
[EventCountry "USA"]
[SourceTitle "playchess.com"]
[Source "ChessBase"]
[SourceQuality "1"]
[TimeControl "5400+30"]

{[%evp 9,66,5,3,0,-7,-9,34,33,46,43,36,39,30,43,34,22,18,-25,0,0,0,-15,0,0,0,0,5,-15,-18,-45,-37,-46,-50,-270,-283,-308,-295,-293,-297,-269,-29,-16,-32,-32,-12,-10,8,0,0,0,8,8,66,72,278,50,45,50,53]} 1. d4 {[%emt 0:00:19]} Nf6 {[%emt 0:03:19]} 2. c4 {[%emt 0:00:02]} e6 {[%emt 0:00:11]} 3. Nf3 {[%emt 0:00:08]} b6 {[%emt 0:00:33]} 4. g3 {[%emt 0:00:16]} Ba6 {[%emt 0:00:10]} 5. Qc2 {[%emt 0:00:09]} c5 {[%emt 0:00:14] [#]} 6. d5 $1 {[%emt 0:00:13] Prevents Nc6.} exd5 {[%emt 0:00:46]} 7. cxd5 {[%emt 0:00:06]} g6 {[%emt 0:00:25][%cal Oa6b7]} 8. Bg2 {[%emt 0:01:08]} d6 {[%emt 0:00:21][%cal Of8g7]} 9. O-O {[%emt 0:00:55]} Bg7 {[%emt 0:00:06][%cal Oe8g8]} 10. Nc3 {[%emt 0:00:24]} O-O {[%emt 0:00:37]} 11. Re1 {[%emt 0:02:35]} b5 {[%emt 0:03:05]} 12. e4 {[%emt 0:06:12]} b4 {[%emt 0:05:52]} 13. Ne2 {[%emt 0:01:32]} Nbd7 {[%emt 0:04:29]} 14. a3 $1 {[%emt 0:08:10]} b3 {[%emt 0:05:41]} 15. Qxb3 {[%emt 0:02:57]} Nxe4 {[%emt 0:00:21]} 16. Qa4 {[%emt 0:06:00][%csl LRa6,LRe4]} Bxe2 {[%emt 0:00:07]} (16... Bd3 $6 17. Nf4 Nxf2 (17... Nb6 18. Qd1 $16) 18. Kxf2 $16) 17. Rxe2 {[%emt 0:00:21]} f5 {[%emt 0:01:16]} 18. Bf4 {[%emt 0:06:17]} Rb8 {[%emt 0:16:12]} 19. Rae1 {[%emt 0:08:33]} Bxb2 {[%emt 0:08:18] ...Nc3 is the strong threat.} 20. Qxa7 {[%emt 0:10:33]} Qc8 {[%emt 0:00:34] ...Ra8 would now be deadly.} 21. Nd2 $2 {[%emt 0:13:01]} ({White must play} 21. Qa4 $1 $15) 21... Nxd2 $19 {[%emt 0:02:38]} (21... Ra8 22. Qxa8 Qxa8 23. Nxe4 $17) 22. Bxd6 {[%emt 0:01:58]} Ra8 {[%emt 0:00:57]} 23. Qc7 {[%emt 0:03:37]} Qxc7 {[%emt 0:00:07]} 24. Bxc7 {[%emt 0:00:05] [#] A strong pair of Bishops.} Bd4 $2 {[%emt 0:03:56]} 25. Rxd2 $11 {[%emt 0:02:34]} Bc3 $1 {[%emt 0:00:14]} (25... Rxa3 $2 26. d6 $18) 26. Re7 {[%emt 0:02:27]} Bxd2 {[%emt 0:00:07]} 27. Rxd7 {[%emt 0:02:59]} Rae8 {[%emt 0:11:29]} 28. d6 {[%emt 0:03:15]} Re1+ {[%emt 0:02:23]} 29. Bf1 {[%emt 0:00:04]} f4 {[%emt 0:01:31]} 30. Re7 {[%emt 0:03:00] Threatens to win with Rxe1.} Rd1 {[%emt 0:06:37]} (30... fxg3 $11 31. hxg3 Rxe7 32. dxe7 Re8) 31. d7 $14 {[%emt 0:04:10] White is more active.} fxg3 $2 {[%emt 0:04:42] [#]} (31... Bc3 $16) 32. hxg3 $2 {[%emt 0:02:18]} (32. d8=R Rxd8 (32... gxf2+ 33. Kg2 $18) 33. Bxd8 gxh2+ 34. Kxh2 Rxf1 $11) (32. Kg2 $1 $18 {White wants to mate with Bc4+.} Rxf2+ 33. Kxg3 Bf4+ 34. Bxf4 (34. Kxf2 Bxc7 35. Bb5 Rd4 $16) 34... Rfxf1 35. Re8+ Kf7 36. d8=Q (36. d8=R Rg1+ 37. Kh4 Rxd8 $18) 36... Rxd8 37. Rxd8) 32... Bg5 {[%emt 0:00:29]} 33. d8=Q {[%emt 0:02:17] Some like it hot} ({Worse is} 33. d8=B Bxe7 (33... Rdxd8 34. Bxd8 Rxd8 35. Ra7 $14) 34. Bxe7 Re8 $17) 33... Rfxd8 {[%emt 0:00:35] Weighted Error Value: White=0.26 (precise) /Black=0.31.  Loses game:     	White=1     	Black=1      Missed win:     	White=1     	Black=1      Mistake:       	---       	Black=1      Inaccurate:     	White=2     	Black=1      OK:         	White=10    	Black=14     Best:        	White=4     	Black=3      Strong:       	White=1     	Black=1} 1/2-1/2

[Event "Presidents Day GM-Norm 2024"]
[Site "Santa Clara"]
[Date "2024.02.16"]
[Round "2.5"]
[White "Deng, Henry"]
[Black "Stearman, Josiah"]
[Result "1/2-1/2"]
[ECO "B23"]
[WhiteElo "2281"]
[BlackElo "2455"]
[Annotator "RC"]
[PlyCount "97"]
[EventDate "2024.02.13"]
[EventType "tourn"]
[EventCountry "USA"]
[SourceTitle "playchess.com"]
[Source "ChessBase"]
[SourceQuality "1"]
[TimeControl "5400+30"]

1. e4 {[%emt 0:00:01]} c5 {[%emt 0:02:22]} 2. Nc3 {[%emt 0:00:32]} Nc6 {[%emt 0:00:13]} 3. Bb5 {[%emt 0:00:42]} Nd4 {[%emt 0:00:05]} 4. Nf3 {[%emt 0:00:14]} a6 {[%emt 0:00:05]} 5. Bd3 {[%emt 0:00:23]} g6 {[%emt 0:00:05]} 6. O-O {[%emt 0:01:03]} Bg7 {[%emt 0:00:04]} 7. Re1 {[%emt 0:00:59]} Nf6 {[%emt 0:01:51]} 8. e5 {[%emt 0:02:44]} Nh5 {[%emt 0:00:07]} 9. Be4 {[%emt 0:01:51]} O-O {[%emt 0:04:02]} 10. d3 {[%emt 0:02:16]} d6 {[%emt 0:01:01]} 11. exd6 {[%emt 0:02:42]} Qxd6 {[%emt 0:00:45]} 12. Nxd4 {[%emt 0:05:56]} cxd4 {[%emt 0:00:56]} 13. Nb1 {[%emt 0:03:19]} f5 {[%emt 0:08:15]} 14. Bf3 {[%emt 0:01:10]} e5 {[%emt 0:00:20]} 15. Nd2 {[%emt 0:08:50]} Qc7 {[%emt 0:01:08]} 16. Nb3 {[%emt 0:12:22]} Nf6 {[%emt 0:01:26]} 17. Bd2 {[%emt 0:04:19]} e4 {[%emt 0:12:21]} 18. Be2 {[%emt 0:10:04]} Nd5 {[%emt 0:04:27]} 19. Bf1 {[%emt 0:04:59]} e3 {[%emt 0:01:14]} 20. fxe3 {[%emt 0:03:29]} dxe3 {[%emt 0:00:36]} 21. Qf3 {[%emt 0:00:33]} exd2 {[%emt 0:06:58]} 22. Qxd5+ {[%emt 0:01:04]} Kh8 {[%emt 0:00:45]} 23. Nxd2 {[%emt 0:01:28]} Bd7 {[%emt 0:00:16]} 24. c3 {[%emt 0:06:23]} Rae8 {[%emt 0:02:39]} 25. d4 {[%emt 0:02:29]} Bc6 {[%emt 0:06:38]} 26. Qc5 {[%emt 0:02:39]} Qd8 {[%emt 0:00:35]} 27. Nc4 {[%emt 0:02:20]} f4 {[%emt 0:01:38]} 28. Ne5 {[%emt 0:02:27]} f3 {[%emt 0:00:17]} 29. Nxf3 {[%emt 0:01:21]} Bxf3 {[%emt 0:01:54]} 30. gxf3 {[%emt 0:00:22]} Bh6 {[%emt 0:00:09]} 31. Bg2 {[%emt 0:03:16]} Bf4 {[%emt 0:07:00]} 32. d5 {[%emt 0:02:34]} Qh4 {[%emt 0:02:16]} 33. Kf1 {[%emt 0:03:34]} Qxh2 {[%emt 0:00:57]} 34. Re4 {[%emt 0:02:03]} Bg3 {[%emt 0:04:26]} 35. Rxe8 {[%emt 0:01:51]} Rxe8 {[%emt 0:00:06]} 36. Qg1 {[%emt 0:01:18]} Qh4 {[%emt 0:02:37]} 37. Qd4+ {[%emt 0:00:49]} Qxd4 {[%emt 0:00:07]} 38. cxd4 {[%emt 0:00:03]} Re3 {[%emt 0:00:47]} 39. Rd1 {[%emt 0:01:15]} Kg7 {[%emt 0:00:24]} 40. d6 {[%emt 0:00:29]} Bxd6 {[%emt 0:00:38]} 41. Kf2 {[%emt 0:00:14]} Bf4 {[%emt 0:00:25]} 42. d5 {[%emt 0:01:37]} Re7 {[%emt 0:01:06]} 43. Bh3 {[%emt 0:00:21]} Bd6 {[%emt 0:00:36]} 44. Rc1 {[%emt 0:00:42]} h5 {[%emt 0:01:09]} 45. Be6 {[%emt 0:00:25]} Kf6 {[%emt 0:00:21]} 46. Rc8 {[%emt 0:00:31]} h4 {[%emt 0:01:20]} 47. Kg2 {[%emt 0:00:32]} Kg5 {[%emt 0:00:24]} 48. Rc4 {[%emt 0:00:20]} Bf4 {[%emt 0:00:15]} 49. Kh3 {[%emt 0:00:18]} 1/2-1/2

[Event "Presidents Day GM-Norm 2024"]
[Site "Santa Clara"]
[Date "2024.02.17"]
[Round "3.1"]
[White "Stearman, Josiah"]
[Black "Sathish, Pranav"]
[Result "1/2-1/2"]
[ECO "C65"]
[WhiteElo "2455"]
[BlackElo "2357"]
[Annotator "TA"]
[PlyCount "88"]
[EventDate "2024.02.13"]
[EventType "tourn"]
[EventCountry "USA"]
[SourceTitle "playchess.com"]
[Source "ChessBase"]
[SourceQuality "1"]
[TimeControl "5400+30"]

{[%evp 15,88,10,20,0,4,8,4,0,0,0,0,0,0,0,18,24,183,25,30,25,41,39,36,38,24,30,37,25,34,33,65,33,37,31,63,63,66,18,37,40,34,25,33,31,47,31,22,25,47,25,27,0,1,0,0,0,52,29,50,0,0,-62,0,0,0,0,0,0,0,0,0,0,0,0,0]} 1. e4 {[%emt 0:01:39]} e5 {[%emt 0:00:33]} 2. Nf3 {[%emt 0:00:09]} Nc6 {[%emt 0:00:01]} 3. Bb5 {[%emt 0:00:08]} Nf6 {[%emt 0:00:04]} 4. d3 {[%emt 0:00:16]} Bc5 {[%emt 0:00:03]} 5. Bxc6 {[%emt 0:00:07]} dxc6 {[%emt 0:00:09]} 6. O-O {[%emt 0:00:49] C65: Ruy Lopez: Berlin Defence (3...Nf6), unusual lines and 4 0-0 Bc5.} Qe7 {[%emt 0:00:45]} 7. Nbd2 {[%emt 0:00:15]} Bg4 {[%emt 0:00:22]} 8. h3 {[%emt 0:00:11]} Bh5 {[%emt 0:00:37]} 9. a3 $1 {[%emt 0:00:06] The main line 9.a3 scores better than 9.Nc4.} Nd7 {[%emt 0:00:26]} 10. b4 {[%emt 0:02:10]} Bd6 {[%emt 0:00:33]} 11. Nc4 {[%emt 0:00:12]} f6 {[%emt 0:02:12]} 12. Na5 {[%emt 0:00:12]} Rb8 {[%emt 0:00:32]} 13. Nc4 $146 {[%emt 0:01:00]} ({Predecessor:} 13. Be3 c5 14. Nc4 O-O 15. Nxd6 cxd6 16. c4 Bxf3 17. Qxf3 b5 18. cxb5 Rxb5 19. Rfc1 {1-0 Kollars,D (2618)-Schitco,I (2507) Brasov GP RO 2023 (6)}) 13... O-O {[%emt 0:00:45]} 14. Ne3 {[%emt 0:01:46]} Rbd8 {[%emt 0:02:38]} 15. Nf5 {[%emt 0:02:38]} Qf7 $2 {[%emt 0:00:39]} (15... Qe8 $11) 16. Ng3 $2 {[%emt 0:01:58]} (16. Bh6 $1 $18 {[%cal Rh6g7]}) 16... Bg6 $11 {[%emt 0:00:56]} 17. Nh4 {[%emt 0:00:11]} c5 {[%emt 0:00:48]} 18. Qg4 {[%emt 0:02:44]} Rfe8 {[%emt 0:01:41]} 19. Be3 {[%emt 0:02:08]} b6 {[%emt 0:00:50]} 20. Ngf5 {[%emt 0:13:21]} Kh8 {[%emt 0:06:22]} 21. Nxg6+ {[%emt 0:02:08]} Qxg6 {[%emt 0:01:14]} 22. Qe2 {[%emt 0:01:19]} Bf8 {[%emt 0:00:35]} 23. b5 {[%emt 0:03:35]} Qf7 {[%emt 0:01:19]} 24. Bd2 {[%emt 0:01:06]} g6 {[%emt 0:02:14]} 25. Ne3 $1 {[%emt 0:00:05]} Bg7 {[%emt 0:00:24]} 26. f4 {[%emt 0:08:46]} (26. a4 $14 {was preferrable.}) 26... exf4 $11 {[%emt 0:03:49]} 27. Rxf4 {[%emt 0:00:11]} (27. Nd5 $2 Qxd5 28. Bxf4 Qd4+ 29. Kh1 Ne5 $19) 27... Nf8 {[%emt 0:00:57]} 28. Rf2 {[%emt 0:05:12]} Ne6 {[%emt 1:13:02]} 29. Raf1 {[%emt 0:50:38]} Nd4 {[%emt 0:00:00]} 30. Qd1 {[%emt 0:00:00]} Nxb5 {[%emt 0:00:00]} 31. Ng4 {[%emt 0:00:00]} f5 $1 {[%emt 0:00:00]} 32. exf5 {[%emt 0:00:00]} Bd4 {[%emt 0:00:00]} (32... Nxa3 33. Bg5 Rd4 (33... Rd5 $2 34. fxg6 Qxg6 35. Bf6 $18) 34. fxg6 (34. f6 Bf8 $18) 34... Qxg6 35. Bf6 $18) 33. Nh6 {[%emt 0:00:00]} (33. a4 $5 Bxf2+ 34. Rxf2 $11) 33... Qg7 {[%emt 0:00:00]} 34. Kh1 {[%emt 0:00:00]} Bxf2 {[%emt 0:00:00]} 35. Rxf2 {[%emt 0:00:00]} gxf5 {[%emt 0:00:00]} (35... Nxa3 $2 36. f6 Qd7 37. f7 $18) ({Black should play} 35... Rd6 $11) 36. Nxf5 $14 {[%emt 0:00:00]} Qg6 $1 {[%emt 0:00:00]} 37. Qa1+ {[%emt 0:00:00]} ({Better is} 37. Qf1 $1 $14 Rd7 (37... Nxa3 $2 {loses.} 38. Qa1+ $18) (37... Nd4 $2 38. Nh6 $18) 38. Nh6) 37... Nd4 $11 {[%emt 0:00:00]} 38. Bc3 {[%emt 0:00:00]} (38. Qf1 $11) 38... Rf8 {[%emt 0:00:00]} (38... Kg8 $1 $15 39. Rf4 h5 (39... Nxf5 40. Rg4 $11) 40. Bxd4 cxd4) 39. Nxd4 {[%emt 0:00:00]} cxd4 {[%emt 0:00:00]} (39... Rxf2 $2 {perishes.} 40. Nf5+ Kg8 41. Ne7+ Kf8 42. Nxg6+ $18) 40. Bxd4+ {[%emt 0:00:00]} Kg8 {[%emt 0:00:00]} 41. Qa2+ $1 {[%emt 0:00:00]} Rf7 {[%emt 0:00:00]} 42. Qc4 {[%emt 0:00:00]} c5 {[%emt 0:00:00]} 43. Rf6 {[%emt 0:00:00]} Qh5 {[%emt 0:00:00]} 44. Bc3 {[%emt 0:00:00]} Qd5 {[%emt 0:00:00]} 1/2-1/2

[Event "Presidents Day GM-Norm 2024"]
[Site "Santa Clara"]
[Date "2024.02.17"]
[Round "3.2"]
[White "Budisavljevic, Luka"]
[Black "Deng, Henry"]
[Result "1-0"]
[ECO "D12"]
[WhiteElo "2475"]
[BlackElo "2281"]
[Annotator "TA"]
[PlyCount "113"]
[EventDate "2024.02.13"]
[EventType "tourn"]
[EventCountry "USA"]
[SourceTitle "playchess.com"]
[Source "ChessBase"]
[SourceQuality "1"]
[TimeControl "5400+30"]

{[%evp 11,113,33,31,28,34,41,27,17,31,19,26,0,11,0,6,0,25,0,0,0,33,28,43,42,43,31,39,38,55,59,60,51,50,23,16,12,25,22,28,33,16,20,81,76,202,188,198,208,197,195,192,197,235,229,243,266,258,254,266,233,312,303,403,408,540,541,557,455,466,467,475,469,471,470,497,414,453,451,497,468,506,552,545,537,533,566,681,647,664,680,685,643,780,732,11761,9412,5093,4556,12839,2193,29974,29975,5314,5106]} 1. d4 {[%emt 0:00:03]} d5 {[%emt 0:00:11]} 2. c4 {[%emt 0:00:09]} c6 {[%emt 0:00:23]} 3. e3 {[%emt 0:00:26]} Nf6 {[%emt 0:00:27]} 4. Nf3 {[%emt 0:00:23]} Bf5 {[%emt 0:00:15]} 5. Nc3 {[%emt 0:00:07]} e6 {[%emt 0:00:12]} 6. Nh4 {[%emt 0:00:05]} Bg6 {[%emt 0:00:32]} 7. Qb3 {[%emt 0:00:11]} Qc7 {[%emt 0:00:10]} 8. Nxg6 {[%emt 0:00:29]} hxg6 {[%emt 0:00:18]} 9. g3 {[%emt 0:00:09] White has an edge.} Nbd7 {[%emt 0:00:40]} 10. cxd5 {[%emt 0:00:29]} exd5 {[%emt 0:00:35]} 11. Bd2 {[%emt 0:00:08]} Be7 {[%emt 0:01:32]} 12. Bd3 {[%emt 0:00:11]} a5 {[%emt 0:03:36]} 13. Rc1 {[%emt 0:00:50][%cal Oc3d5]} Qb6 {[%emt 0:01:39]} 14. f3 {[%emt 0:07:33]} Qxb3 {[%emt 0:03:03]} 15. axb3 {[%emt 0:00:03]} O-O {[%emt 0:01:26]} 16. Kf2 {[%emt 0:00:27]} Nb6 {[%emt 0:01:17]} 17. Ra1 {[%emt 0:03:34]} Bb4 {[%emt 0:02:01]} 18. Bc2 {[%emt 0:04:18]} Rfe8 {[%emt 0:03:25]} 19. g4 {[%emt 0:00:27]} Nfd7 {[%emt 0:04:17][%cal Bf6d7,Bd7f8,Bf8e6][%mdl 32]} 20. h4 {[%emt 0:02:52]} Nf8 {[%emt 0:02:44]} 21. h5 {[%emt 0:04:46]} gxh5 {[%emt 0:02:58]} 22. gxh5 {[%emt 0:02:07]} Ne6 {[%emt 0:03:11]} 23. Rh4 {[%emt 0:01:22][%cal Bh1h4,Bh4g4,Bg4g2][%mdl 32]} Be7 {[%emt 0:06:57]} 24. Rg4 {[%emt 0:01:32]} Nd7 {[%emt 0:01:13]} 25. Rh1 {[%emt 0:02:08]} Nf6 {[%emt 0:03:07]} 26. Rg2 {[%emt 0:02:08]} Bb4 {[%emt 0:03:22] [#]} (26... c5 $11 {keeps the balance.}) 27. f4 $1 $16 {[%emt 0:01:17][%cal Bf3f4,Bf4f5][%mdl 32]} c5 {[%emt 0:07:07] A mistake that costs the game.} (27... Kh8 $16) 28. f5 $18 {[%emt 0:00:24]} cxd4 {[%emt 0:05:13]} 29. fxe6 {[%emt 0:00:26]} dxc3 {[%emt 0:00:38]} 30. exf7+ {[%emt 0:00:39]} Kxf7 {[%emt 0:00:04]} 31. bxc3 {[%emt 0:00:20]} ({Don't do} 31. Bxc3 $6 Bxc3 32. Bg6+ (32. bxc3 Re5 $11) 32... Ke6 33. Bxe8 (33. bxc3 Rec8 $11) 33... Bxb2 $16) 31... Bc5 {[%emt 0:00:59]} 32. Bg6+ {[%emt 0:00:22]} Kf8 {[%emt 0:00:03]} 33. Bxe8 {[%emt 0:02:53]} Rxe8 {[%emt 0:00:25]} 34. Ke2 {[%emt 0:02:06]} Kf7 {[%emt 0:02:19]} 35. Kd3 {[%emt 0:01:41]} Bf8 {[%emt 0:03:42]} 36. Rg5 {[%emt 0:03:36]} Ne4 {[%emt 0:03:04]} 37. Rf1+ {[%emt 0:01:49]} ({Not} 37. Rxd5 Nf2+ 38. Ke2 Nxh1 $11) 37... Ke6 {[%emt 0:00:32]} 38. Rg6+ {[%emt 0:00:15]} Nf6 {[%emt 0:00:36] [#]} 39. h6 $1 {[%emt 0:01:52][%cal Of1f6] Hoping for Rfxf6+!} Kf7 {[%emt 0:00:36]} 40. h7 {[%emt 0:00:35][%cal Og6f6] And now Rgxf6+! would win.} Be7 {[%emt 0:02:11]} 41. Rg5 {[%emt 0:01:19]} Rh8 {[%emt 0:01:19]} 42. Rxd5 {[%emt 0:00:04]} b6 {[%emt 0:00:14]} 43. Rh5 {[%emt 0:02:15]} Kg6 {[%emt 0:01:53]} 44. Re5 {[%emt 0:01:26]} Rd8+ {[%emt 0:00:50]} 45. Kc2 {[%emt 0:01:26]} Bd6 {[%emt 0:00:11]} 46. Re6 {[%emt 0:01:03]} Kxh7 {[%emt 0:00:18]} 47. e4 {[%emt 0:00:34][%cal Be3e4,Be4e5][%mdl 32]} Bc5 {[%emt 0:00:48]} 48. Bg5 {[%emt 0:01:22]} Re8 {[%emt 0:00:52]} 49. Rxe8 {[%emt 0:01:04]} Nxe8 {[%emt 0:00:06][%mdl 4096] Endgame. KRB-KBN} 50. Kd3 {[%emt 0:00:14]} Nc7 {[%emt 0:00:28]} 51. Be3 {[%emt 0:00:27]} Ne6 {[%emt 0:00:14]} 52. e5 {[%emt 0:00:38] Bxc5 is the strong threat.} Kg6 {[%emt 0:00:57]} 53. Bxc5 {[%emt 0:01:12][%cal Od3e4] Ke4! would kill now.} Nxc5+ {[%emt 0:00:11]} 54. Kc4 {[%emt 0:00:15] Intending Kd5 and mate.} Ne4 {[%emt 0:00:58]} 55. Rf4 {[%emt 0:00:10]} Nc5 {[%emt 0:00:19]} 56. Kd5 {[%emt 0:00:24]} Kg5 {[%emt 0:00:39]} 57. Rf1 {[%emt 0:00:12] Weighted Error Value: White=0.09 (flawless) /Black=0.41.  Mistake:       	---       	Black=2      Inaccurate:     	White=2     	Black=4      OK:         	White=22    	Black=11     Best:        	White=1     	Black=1      Strong:       	White=1     	---} 1-0